fUSD/lending_fUSD_20260606
["ID","MTS","AMOUNT","RATE_DAILY","PERIOD"]
[424298336,1780757432000,-3879.73,8.058e-05,2]
[424298334,1780757432000,-166.66,7.87e-05,2]
[424298338,1780757432000,-3019.06,8.058e-05,2]
[424298337,1780757432000,-521.56,8.058e-05,2]
[424298335,1780757432000,-10218.233943,7.945e-05,2]
[424298332,1780757432000,-255.0,7.714e-05,2]
[424298333,1780757432000,-250.0,7.751e-05,2]
[424298343,1780757432000,-24999.99,8.058e-05,2]
[424298344,1780757432000,-299.99,8.058e-05,2]
[424298331,1780757432000,-250.0,7.713e-05,2]
[424298341,1780757432000,-9999.99,8.058e-05,2]
[424298342,1780757432000,-1632.13,8.058e-05,2]
[424298340,1780757432000,-9999.99,8.058e-05,2]
[424298356,1780757432000,-1561.23,8.058e-05,2]
[424298358,1780757432000,-1491.73,8.058e-05,2]
[424298326,1780757432000,-1000.0,7.536e-05,2]
[424298324,1780757432000,-166.66,7.382e-05,2]
[424298314,1780757432000,-211.99381606,7.047e-05,2]
[424298313,1780757432000,-439.0,7.046e-05,2]
[424298316,1780757432000,-150.0,7.05e-05,2]
[424298315,1780757432000,-38.00618394,7.047e-05,2]
[424298317,1780757432000,-463.86551239,7.053e-05,2]
[424298319,1780757432000,-7942.99,7.126e-05,2]
[424298325,1780757432000,-717.16,7.394e-05,2]
[424298320,1780757432000,-226.61,7.178e-05,2]
[424298329,1780757432000,-420.0,7.699e-05,2]
[424298318,1780757432000,-215.80795776,7.054e-05,2]
[424298328,1780757432000,-44824.87,7.671e-05,2]
[424298327,1780757432000,-166.66,7.626e-05,2]
[424298322,1780757432000,-1000.0,7.356e-05,2]
[424298323,1780757432000,-1000.0,7.356e-05,2]
[424298321,1780757432000,-160.0,7.257e-05,2]
[424298357,1780757432000,-1979.13,8.058e-05,2]
[424298351,1780757432000,-150.99,8.058e-05,2]
[424298360,1780757432000,-121803.69,8.058e-05,2]
[424298370,1780757432000,-250.0,8.228e-05,2]
[424298369,1780757432000,-2340.13,8.219e-05,2]
[424298371,1780757432000,-166.66,8.357e-05,2]
[424298376,1780757432000,-421.4,8.676e-05,2]
[424298378,1780757432000,-14204.87,8.864e-05,2]
[424298377,1780757432000,-1023.77,8.864e-05,2]
[424298366,1780757432000,-2000.0,8.219e-05,2]
[424298380,1780757432000,-4999.99,8.864e-05,2]
[424298382,1780757432000,-6212.84124074,8.864e-05,2]
[424298381,1780757432000,-29044.44,8.864e-05,2]
[424298386,1780757432000,-421.4,9.589e-05,2]
[424298379,1780757432000,-9999.99,8.864e-05,2]
[424298383,1780757432000,-421.4,9.132e-05,2]
[424298359,1780757432000,-2134.84,8.058e-05,2]
[424298384,1780757432000,-2000.0,9.247e-05,2]
[424298367,1780757432000,-421.4,8.219e-05,2]
[424298385,1780757432000,-736.0,9.334e-05,2]
[424298368,1780757432000,-6758.7,8.219e-05,2]
[424298372,1780757432000,-388.0,8.469e-05,2]
[424298347,1780757432000,-1198.31,8.058e-05,2]
[424298361,1780757432000,-999.99,8.058e-05,2]
[424298345,1780757432000,-7224.96,8.058e-05,2]
[424298349,1780757432000,-499.99,8.058e-05,2]
[424298353,1780757432000,-9999.99,8.058e-05,2]
[424298355,1780757432000,-1582.25,8.058e-05,2]
[424298348,1780757432000,-239765.97,8.058e-05,2]
[424298363,1780757432000,-9999.99,8.058e-05,2]
[424298375,1780757432000,-166.66,8.601e-05,2]
[424298374,1780757432000,-150.0,8.493e-05,2]
[424298364,1780757432000,-166.66,8.113e-05,2]
[424298362,1780757432000,-3751.59,8.058e-05,2]
[424298373,1780757432000,-433.0,8.485e-05,2]
[424298365,1780757432000,-8422.381696,8.178e-05,2]
[424298400,1780757433000,-340.83087181,0.0001,2]
[424298401,1780757433000,-3218.43687232,0.0001,2]
[424298403,1780757433000,-421.4,0.00010046,2]
[424298402,1780757433000,-4000.0,0.00010027,2]
[424298409,1780757433000,-500.0,0.00010508,2]
[424298412,1780757433000,-500.0,0.00010782,2]
[424298408,1780757433000,-421.4,0.00010502,2]
[424298413,1780757433000,-3163.14745857,0.00010828,2]
[424298410,1780757433000,-4000.0,0.00010529,2]
[424298411,1780757433000,-4000.0,0.00010779,2]
[424298404,1780757433000,-1252.0,0.00010267,2]
[424298407,1780757433000,-8203.91781114,0.000104,2]
[424298406,1780757433000,-4000.0,0.00010278,2]
[424298394,1780757433000,-299.59830692,0.0001,2]
[424298398,1780757433000,-340.0,0.0001,2]
[424298397,1780757433000,-163.61,0.0001,2]
[424298399,1780757433000,-340.0,0.0001,2]
[424298396,1780757433000,-299.59830692,0.0001,2]
[424298395,1780757433000,-299.59830692,0.0001,2]
[424298393,1780757433000,-3163.14745858,0.0001,2]
[424298392,1780757433000,-863.14389613,0.0001,2]
[424298391,1780757433000,-158.26695761,0.0001,2]
[424298389,1780757433000,-1019.0,0.0001,2]
[424298390,1780757433000,-158.26695761,0.0001,2]
[424298387,1780757433000,-1745.35211327,9.97e-05,2]
[424298388,1780757433000,-220.13276167,0.0001,2]
[424298418,1780757433000,-13686.4886628,0.000109,2]
[424298405,1780757433000,-2000.0,0.00010274,2]
[424298415,1780757433000,-13686.48866285,0.000109,2]
[424298419,1780757433000,-160.0,0.00010931,2]
[424298417,1780757433000,-13686.4886628,0.000109,2]
[424298416,1780757433000,-13686.4886628,0.000109,2]
[424298446,1780757433000,-65038.96884755,0.00011099,2]
[424298447,1780757433000,-106217.23499297,0.00011099,2]
[424298439,1780757433000,-85537.75261168,0.00011099,2]
[424298443,1780757433000,-51913.85535174,0.00011099,2]
[424298445,1780757433000,-42351.11877843,0.00011099,2]
[424298444,1780757433000,-32007.03482715,0.00011099,2]
[424298441,1780757433000,-107390.087626,0.00011099,2]
[424298440,1780757433000,-85537.75261168,0.00011099,2]
[424298435,1780757433000,-3218.43687232,0.00011089,2]
[424298436,1780757433000,-85537.75261168,0.00011099,2]
[424298438,1780757433000,-85537.75261168,0.00011099,2]
[424298437,1780757433000,-85537.75261168,0.00011099,2]
[424298434,1780757433000,-500.0,0.00011056,2]
[424298442,1780757433000,-23469.19744709,0.00011099,2]
[424298423,1780757433000,-4550.67,0.00010959,2]
[424298414,1780757433000,-3400.0,0.000109,3]
[424298427,1780757433000,-171.3,0.00010989,2]
[424298420,1780757433000,-517.697725,0.00010931,2]
[424298429,1780757433000,-171.3,0.00010989,2]
[424298431,1780757433000,-880.07,0.00011053,2]
[424298430,1780757433000,-4000.0,0.0001103,2]
[424298432,1780757433000,-2000.0,0.00011053,2]
[424298422,1780757433000,-150.0,0.00010959,2]
[424298421,1780757433000,-875.39545,0.00010931,2]
[424298428,1780757433000,-171.3,0.00010989,2]
[424298425,1780757433000,-421.4,0.00010959,2]
[424298426,1780757433000,-162.21,0.00010989,2]
[424298424,1780757433000,-150.0,0.00010959,2]
[424298433,1780757433000,-598.3,0.00011053,2]
[424298470,1780757438000,-13686.4886628,0.00011494,2]
[424298476,1780757438000,-421.4,0.00011872,2]
[424298472,1780757438000,-250.0,0.00011604,2]
[424298471,1780757438000,-6758.7,0.00011507,2]
[424298474,1780757438000,-6212.84124073,0.00011832,2]
[424298475,1780757438000,-167.0,0.00011832,2]
[424298473,1780757438000,-107390.08762598,0.00011679,2]
[424298479,1780757438000,-1807.46893549,0.00012,2]
[424298482,1780757438000,-45046.68,0.00012055,2]
[424298483,1780757438000,-19999.99,0.00012087,2]
[424298477,1780757438000,-166.164969,0.00011964,2]
[424298486,1780757438000,-85537.75261168,0.00012096,2]
[424298478,1780757438000,-208.18140964,0.00011966,2]
[424298481,1780757438000,-199.5,0.0001205,2]
[424298485,1780757438000,-9999.99,0.00012087,2]
[424298469,1780757438000,-705.951443,0.00011478,2]
[424298480,1780757438000,-264.17748,0.00012046,2]
[424298468,1780757438000,-421.4,0.00011416,2]
[424298450,1780757438000,-453.9788913,8.057e-05,2]
[424298464,1780757438000,-85537.75261168,0.00011238,2]
[424298448,1780757438000,-461.64266329,8.057e-05,2]
[424298449,1780757438000,-394.48736592,8.057e-05,2]
[424298459,1780757438000,-2000.0,0.00011022,2]
[424298458,1780757438000,-1667.00136564,0.00010299,2]
[424298451,1780757438000,-500.0,8.219e-05,2]
[424298453,1780757438000,-459.81125781,8.219e-05,2]
[424298461,1780757438000,-1172.85263301,0.00011099,2]
[424298457,1780757438000,-500.0,8.219e-05,2]
[424298454,1780757438000,-500.0,8.219e-05,2]
[424298456,1780757438000,-500.0,8.219e-05,2]
[424298455,1780757438000,-500.0,8.219e-05,2]
[424298460,1780757438000,-1181.55819316,0.00011098,3]
[424298452,1780757438000,-500.0,8.219e-05,2]
[424298463,1780757438000,-107390.08762598,0.00011099,2]
[424298462,1780757438000,-107390.08762598,0.00011099,2]
[424298465,1780757438000,-692.23,0.00011286,2]
[424298467,1780757438000,-2129.0,0.00011297,2]
[424298466,1780757438000,-934.75,0.00011286,2]
[424298488,1780757438000,-211.150649,0.00012107,2]
[424298490,1780757438000,-160.8907078,0.00012272,2]
[424298484,1780757438000,-29999.99,0.00012087,2]
[424298509,1780757438000,-13686.4886628,0.00012629,2]
[424298512,1780757438000,-85537.75261168,0.00012954,2]
[424298517,1780757438000,-264.55,0.00013426,2]
[424298511,1780757438000,-1299.264386,0.00012923,2]
[424298510,1780757438000,-287.932703,0.00012712,2]
[424298514,1780757438000,-448.899928,0.00013052,2]
[424298513,1780757438000,-304.4573695,0.00012956,2]
[424298507,1780757438000,-107390.08762598,0.00012558,2]
[424298515,1780757438000,-1500.0,0.00013074,2]
[424298520,1780757438000,-150.0,0.00013488,2]
[424298522,1780757438000,-150.0,0.00013488,2]
[424298521,1780757438000,-150.0,0.00013488,2]
[424298523,1780757438000,-150.0,0.00013488,2]
[424298526,1780757438000,-150.0,0.00013488,2]
[424298525,1780757438000,-150.0,0.00013488,2]
[424298491,1780757438000,-155.4453539,0.00012272,2]
[424298516,1780757438000,-1000.0,0.0001327,2]
[424298519,1780757438000,-150.0,0.00013488,2]
[424298524,1780757438000,-150.0,0.00013488,2]
[424298508,1780757438000,-244.729833,0.00012571,2]
[424298518,1780757438000,-107390.08762598,0.00013438,2]
[424298494,1780757438000,-5000.0,0.00012292,2]
[424298489,1780757438000,-262.301298,0.00012107,2]
[424298487,1780757438000,-160.0,0.00012107,2]
[424298492,1780757438000,-150.0,0.00012272,2]
[424298496,1780757438000,-5000.0,0.00012292,2]
[424298506,1780757438000,-498.386561,0.0001243,2]
[424298495,1780757438000,-5000.0,0.00012292,2]
[424298493,1780757438000,-5000.0,0.00012292,2]
[424298497,1780757438000,-5000.0,0.00012292,2]
[424298502,1780757438000,-2000.0,0.000124,2]
[424298500,1780757438000,-278.82,0.00012329,2]
[424298499,1780757438000,-204.937681,0.00012307,2]
[424298505,1780757438000,-329.19328,0.0001243,2]
[424298504,1780757438000,-160.0,0.0001243,2]
[424298501,1780757438000,-421.4,0.00012329,2]
[424298498,1780757438000,-203.472445,0.00012307,2]
[424298503,1780757438000,-3620.0,0.00012427,2]
[424298599,1780757439000,-150.0,0.00013625,2]
[424298607,1780757439000,-150.0,0.00013641,2]
[424298601,1780757439000,-150.0,0.00013626,2]
[424298605,1780757439000,-516.14280082,0.00013639,2]
[424298597,1780757439000,-516.14280082,0.00013624,2]
[424298590,1780757439000,-150.0,0.0001361,2]
[424298593,1780757439000,-150.0,0.00013618,2]
[424298588,1780757439000,-516.14280082,0.00013609,2]
[424298586,1780757439000,-150.0,0.00013606,2]
[424298603,1780757439000,-150.0,0.00013626,2]
[424298578,1780757439000,-150.0,0.00013591,2]
[424298595,1780757439000,-1555.5,0.00013622,2]
[424298609,1780757439000,-150.0,0.00013643,2]
[424298623,1780757439000,-1741.0,0.00013668,2]
[424298617,1780757439000,-516.14280082,0.00013654,2]
[424298615,1780757439000,-150.0,0.00013654,2]
[424298613,1780757439000,-150.0,0.00013649,2]
[424298619,1780757439000,-150.0,0.00013656,2]
[424298621,1780757439000,-150.0,0.00013665,2]
[424298632,1780757439000,-150.0,0.00013683,2]
[424298626,1780757439000,-516.14280082,0.00013669,2]
[424298630,1780757439000,-150.0,0.00013672,2]
[424298628,1780757439000,-150.0,0.00013671,2]
[424298638,1780757439000,-150.0,0.00013686,2]
[424298634,1780757439000,-516.14280082,0.00013684,2]
[424298574,1780757439000,-150.0,0.0001358,2]
[424298611,1780757439000,-150.0,0.00013645,2]
[424298576,1780757439000,-150.0,0.00013586,2]
[424298554,1780757439000,-150.0,0.00013547,2]
[424298584,1780757439000,-150.0,0.00013603,2]
[424298529,1780757439000,-203.77673036,0.00013488,2]
[424298528,1780757439000,-516.14280082,0.00013488,2]
[424298527,1780757439000,-150.0,0.00013488,2]
[424298530,1780757439000,-150.0,0.00013488,2]
[424298532,1780757439000,-516.14280082,0.00013503,2]
[424298546,1780757439000,-516.14280082,0.00013533,2]
[424298548,1780757439000,-150.0,0.00013534,2]
[424298534,1780757439000,-150.0,0.00013503,2]
[424298550,1780757439000,-150.0,0.00013534,2]
[424298642,1780757439000,-150.0,0.00013695,2]
[424298556,1780757439000,-516.14280082,0.00013548,2]
[424298552,1780757439000,-150.0,0.00013539,2]
[424298582,1780757439000,-150.0,0.00013595,2]
[424298540,1780757439000,-516.14280082,0.00013518,2]
[424298536,1780757439000,-150.0,0.00013507,2]
[424298542,1780757439000,-150.0,0.00013518,2]
[424298544,1780757439000,-150.0,0.00013527,2]
[424298558,1780757439000,-150.0,0.00013549,2]
[424298560,1780757439000,-150.0,0.00013553,2]
[424298562,1780757439000,-150.0,0.00013557,2]
[424298566,1780757439000,-150.0,0.00013564,2]
[424298568,1780757439000,-150.0,0.00013567,2]
[424298564,1780757439000,-516.14280082,0.00013563,2]
[424298580,1780757439000,-516.14280082,0.00013594,2]
[424298570,1780757439000,-516.14280082,0.00013578,2]
[424298572,1780757439000,-150.0,0.00013579,2]
[424298538,1780757439000,-150.0,0.00013511,2]
[424298640,1780757439000,-150.0,0.00013694,2]
[424298636,1780757439000,-150.0,0.00013685,2]
[424298645,1780757439000,-500.4612262,0.00013698,2]
[424298678,1780757439000,-576.89,0.00013698,2]
[424298681,1780757439000,-576.89,0.00013698,2]
[424298677,1780757439000,-576.89,0.00013698,2]
[424298679,1780757439000,-576.89,0.00013698,2]
[424298685,1780757439000,-500.0,0.00013698,2]
[424298683,1780757439000,-576.89,0.00013698,2]
[424298680,1780757439000,-576.89,0.00013698,2]
[424298686,1780757439000,-500.0,0.00013698,2]
[424298684,1780757439000,-500.0,0.00013698,2]
[424298682,1780757439000,-576.89,0.00013698,2]
[424298687,1780757439000,-500.0,0.00013698,2]
[424298688,1780757439000,-500.0,0.00013698,2]
[424298690,1780757439000,-500.0,0.00013698,2]
[424298691,1780757439000,-500.0,0.00013698,2]
[424298692,1780757439000,-500.0,0.00013698,2]
[424298689,1780757439000,-500.0,0.00013698,2]
[424298695,1780757439000,-517.63739233,0.00013698,2]
[424298698,1780757439000,-500.0,0.00013698,2]
[424298697,1780757439000,-500.0,0.00013698,2]
[424298694,1780757439000,-500.0,0.00013698,2]
[424298647,1780757439000,-500.0,0.00013698,2]
[424298693,1780757439000,-500.0,0.00013698,2]
[424298699,1780757439000,-500.0,0.00013698,2]
[424298700,1780757439000,-500.0,0.00013698,2]
[424298701,1780757439000,-500.0,0.00013698,2]
[424298702,1780757439000,-500.0,0.00013698,2]
[424298703,1780757439000,-500.0,0.00013698,2]
[424298675,1780757439000,-576.89,0.00013698,2]
[424298674,1780757439000,-576.89,0.00013698,2]
[424298696,1780757439000,-500.0,0.00013698,2]
[424298676,1780757439000,-576.89,0.00013698,2]
[424298648,1780757439000,-500.99630426,0.00013698,2]
[424298643,1780757439000,-500.0,0.00013698,2]
[424298652,1780757439000,-500.0,0.00013698,2]
[424298646,1780757439000,-500.0,0.00013698,2]
[424298651,1780757439000,-500.0,0.00013698,2]
[424298650,1780757439000,-500.0,0.00013698,2]
[424298653,1780757439000,-500.0,0.00013698,2]
[424298649,1780757439000,-500.0,0.00013698,2]
[424298671,1780757439000,-560.57,0.00013698,2]
[424298660,1780757439000,-338.87344356,0.00013698,2]
[424298655,1780757439000,-500.0,0.00013698,2]
[424298661,1780757439000,-500.0,0.00013698,2]
[424298657,1780757439000,-500.0,0.00013698,2]
[424298654,1780757439000,-279.66288883,0.00013698,2]
[424298664,1780757439000,-560.57,0.00013698,2]
[424298672,1780757439000,-560.57,0.00013698,2]
[424298673,1780757439000,-576.89,0.00013698,2]
[424298662,1780757439000,-560.57,0.00013698,2]
[424298667,1780757439000,-560.57,0.00013698,2]
[424298668,1780757439000,-560.57,0.00013698,2]
[424298669,1780757439000,-560.57,0.00013698,2]
[424298670,1780757439000,-560.57,0.00013698,2]
[424298665,1780757439000,-560.57,0.00013698,2]
[424298659,1780757439000,-500.0,0.00013698,2]
[424298663,1780757439000,-560.57,0.00013698,2]
[424298656,1780757439000,-500.0,0.00013698,2]
[424298658,1780757439000,-500.0,0.00013698,2]
[424298666,1780757439000,-560.57,0.00013698,2]
[424298727,1780757440000,-500.0,0.00013698,2]
[424298731,1780757440000,-679.76,0.00013698,2]
[424298730,1780757440000,-679.76,0.00013698,2]
[424298732,1780757440000,-679.76,0.00013698,2]
[424298733,1780757440000,-679.76,0.00013698,2]
[424298734,1780757440000,-679.76,0.00013698,2]
[424298735,1780757440000,-679.76,0.00013698,2]
[424298738,1780757440000,-679.76,0.00013698,2]
[424298736,1780757440000,-679.76,0.00013698,2]
[424298740,1780757440000,-679.76,0.00013698,2]
[424298755,1780757440000,-689.93,0.00013698,2]
[424298739,1780757440000,-679.76,0.00013698,2]
[424298737,1780757440000,-679.76,0.00013698,2]
[424298741,1780757440000,-550.42035048,0.00013698,2]
[424298742,1780757440000,-500.0,0.00013698,2]
[424298753,1780757440000,-2608.19,0.00013698,2]
[424298754,1780757440000,-522.71612646,0.00013698,2]
[424298744,1780757440000,-2608.19,0.00013698,2]
[424298756,1780757440000,-689.93,0.00013698,2]
[424298726,1780757440000,-500.0,0.00013698,2]
[424298743,1780757440000,-2608.19,0.00013698,2]
[424298724,1780757440000,-500.0,0.00013698,2]
[424298713,1780757440000,-886.99,0.00013698,2]
[424298728,1780757440000,-500.0,0.00013698,2]
[424298747,1780757440000,-2608.19,0.00013698,2]
[424298708,1780757440000,-500.0,0.00013698,2]
[424298707,1780757440000,-500.0,0.00013698,2]
[424298705,1780757440000,-500.0,0.00013698,2]
[424298704,1780757440000,-500.0,0.00013698,2]
[424298706,1780757440000,-500.0,0.00013698,2]
[424298711,1780757440000,-500.0,0.00013698,2]
[424298710,1780757440000,-500.0,0.00013698,2]
[424298709,1780757440000,-500.0,0.00013698,2]
[424298716,1780757440000,-886.99,0.00013698,2]
[424298714,1780757440000,-886.99,0.00013698,2]
[424298717,1780757440000,-886.99,0.00013698,2]
[424298715,1780757440000,-886.99,0.00013698,2]
[424298712,1780757440000,-886.99,0.00013698,2]
[424298718,1780757440000,-886.99,0.00013698,2]
[424298719,1780757440000,-886.99,0.00013698,2]
[424298721,1780757440000,-886.99,0.00013698,2]
[424298720,1780757440000,-886.99,0.00013698,2]
[424298722,1780757440000,-886.99,0.00013698,2]
[424298723,1780757440000,-500.0,0.00013698,2]
[424298725,1780757440000,-500.0,0.00013698,2]
[424298729,1780757440000,-401.20871667,0.00013698,2]
[424298745,1780757440000,-2608.19,0.00013698,2]
[424298797,1780757440000,-500.0,0.00013698,2]
[424298749,1780757440000,-2608.19,0.00013698,2]
[424298778,1780757440000,-4130.61,0.00013698,2]
[424298775,1780757440000,-4130.61,0.00013698,2]
[424298779,1780757440000,-4130.61,0.00013698,2]
[424298777,1780757440000,-4130.61,0.00013698,2]
[424298780,1780757440000,-4130.61,0.00013698,2]
[424298776,1780757440000,-4130.61,0.00013698,2]
[424298784,1780757440000,-4130.61,0.00013698,2]
[424298785,1780757440000,-4130.61,0.00013698,2]
[424298786,1780757440000,-500.0,0.00013698,2]
[424298788,1780757440000,-500.0,0.00013698,2]
[424298795,1780757440000,-500.0,0.00013698,2]
[424298787,1780757440000,-500.0,0.00013698,2]
[424298792,1780757440000,-500.0,0.00013698,2]
[424298794,1780757440000,-500.0,0.00013698,2]
[424298793,1780757440000,-500.0,0.00013698,2]
[424298790,1780757440000,-500.0,0.00013698,2]
[424298791,1780757440000,-500.0,0.00013698,2]
[424298796,1780757440000,-500.0,0.00013698,2]
[424298799,1780757440000,-500.0,0.00013698,2]
[424298746,1780757440000,-2608.19,0.00013698,2]
[424298798,1780757440000,-500.0,0.00013698,2]
[424298774,1780757440000,-502.60698741,0.00013698,2]
[424298773,1780757440000,-500.0,0.00013698,2]
[424298789,1780757440000,-500.0,0.00013698,2]
[424298783,1780757440000,-4130.61,0.00013698,2]
[424298750,1780757440000,-2608.19,0.00013698,2]
[424298772,1780757440000,-500.0,0.00013698,2]
[424298748,1780757440000,-2608.19,0.00013698,2]
[424298752,1780757440000,-2608.19,0.00013698,2]
[424298751,1780757440000,-2608.19,0.00013698,2]
[424298757,1780757440000,-689.93,0.00013698,2]
[424298768,1780757440000,-689.93,0.00013698,2]
[424298769,1780757440000,-689.93,0.00013698,2]
[424298765,1780757440000,-689.93,0.00013698,2]
[424298764,1780757440000,-689.93,0.00013698,2]
[424298758,1780757440000,-689.93,0.00013698,2]
[424298766,1780757440000,-689.93,0.00013698,2]
[424298762,1780757440000,-689.93,0.00013698,2]
[424298759,1780757440000,-689.93,0.00013698,2]
[424298761,1780757440000,-689.93,0.00013698,2]
[424298763,1780757440000,-689.93,0.00013698,2]
[424298767,1780757440000,-689.93,0.00013698,2]
[424298771,1780757440000,-500.0,0.00013698,2]
[424298770,1780757440000,-689.93,0.00013698,2]
[424298760,1780757440000,-689.93,0.00013698,2]
[424298781,1780757440000,-4130.61,0.00013698,2]
[424298782,1780757440000,-4130.61,0.00013698,2]
[424298844,1780757441000,-535.99,0.00013698,2]
[424298846,1780757441000,-535.99,0.00013698,2]
[424298848,1780757441000,-731.42,0.00013698,2]
[424298843,1780757441000,-535.99,0.00013698,2]
[424298842,1780757441000,-535.99,0.00013698,2]
[424298840,1780757441000,-535.99,0.00013698,2]
[424298841,1780757441000,-535.99,0.00013698,2]
[424298838,1780757441000,-535.99,0.00013698,2]
[424298836,1780757441000,-535.99,0.00013698,2]
[424298831,1780757441000,-644.76838733,0.00013698,2]
[424298845,1780757441000,-535.99,0.00013698,2]
[424298830,1780757441000,-644.59,0.00013698,2]
[424298839,1780757441000,-535.99,0.00013698,2]
[424298837,1780757441000,-535.99,0.00013698,2]
[424298849,1780757441000,-731.42,0.00013698,2]
[424298850,1780757441000,-731.42,0.00013698,2]
[424298860,1780757441000,-731.42,0.00013698,2]
[424298862,1780757441000,-731.42,0.00013698,2]
[424298861,1780757441000,-731.42,0.00013698,2]
[424298855,1780757441000,-731.42,0.00013698,2]
[424298851,1780757441000,-731.42,0.00013698,2]
[424298857,1780757441000,-731.42,0.00013698,2]
[424298852,1780757441000,-731.42,0.00013698,2]
[424298853,1780757441000,-731.42,0.00013698,2]
[424298859,1780757441000,-731.42,0.00013698,2]
[424298854,1780757441000,-731.42,0.00013698,2]
[424298856,1780757441000,-731.42,0.00013698,2]
[424298858,1780757441000,-731.42,0.00013698,2]
[424298832,1780757441000,-535.99,0.00013698,2]
[424298847,1780757441000,-535.99,0.00013698,2]
[424298827,1780757441000,-644.59,0.00013698,2]
[424298801,1780757441000,-500.0,0.00013698,2]
[424298826,1780757441000,-644.59,0.00013698,2]
[424298865,1780757441000,-731.42,0.00013698,2]
[424298807,1780757441000,-500.0,0.00013698,2]
[424298806,1780757441000,-500.0,0.00013698,2]
[424298809,1780757441000,-644.59,0.00013698,2]
[424298808,1780757441000,-644.59,0.00013698,2]
[424298800,1780757441000,-500.0,0.00013698,2]
[424298804,1780757441000,-500.0,0.00013698,2]
[424298803,1780757441000,-500.0,0.00013698,2]
[424298805,1780757441000,-500.0,0.00013698,2]
[424298802,1780757441000,-500.0,0.00013698,2]
[424298811,1780757441000,-644.59,0.00013698,2]
[424298821,1780757441000,-644.59,0.00013698,2]
[424298817,1780757441000,-644.59,0.00013698,2]
[424298814,1780757441000,-644.59,0.00013698,2]
[424298825,1780757441000,-644.59,0.00013698,2]
[424298822,1780757441000,-644.59,0.00013698,2]
[424298823,1780757441000,-644.59,0.00013698,2]
[424298815,1780757441000,-644.59,0.00013698,2]
[424298812,1780757441000,-644.59,0.00013698,2]
[424298813,1780757441000,-644.59,0.00013698,2]
[424298816,1780757441000,-644.59,0.00013698,2]
[424298818,1780757441000,-644.59,0.00013698,2]
[424298820,1780757441000,-644.59,0.00013698,2]
[424298819,1780757441000,-644.59,0.00013698,2]
[424298824,1780757441000,-644.59,0.00013698,2]
[424298833,1780757441000,-535.99,0.00013698,2]
[424298834,1780757441000,-535.99,0.00013698,2]
[424298835,1780757441000,-535.99,0.00013698,2]
[424298828,1780757441000,-644.59,0.00013698,2]
[424298829,1780757441000,-644.59,0.00013698,2]
[424298810,1780757441000,-644.59,0.00013698,2]
[424298863,1780757441000,-731.42,0.00013698,2]
[424298904,1780757441000,-500.0,0.00013698,2]
[424298864,1780757441000,-731.42,0.00013698,2]
[424298900,1780757441000,-500.0,0.00013698,2]
[424298898,1780757441000,-500.0,0.00013698,2]
[424298905,1780757441000,-500.0,0.00013698,2]
[424298915,1780757441000,-500.0,0.00013698,2]
[424298916,1780757441000,-500.0,0.00013698,2]
[424298917,1780757441000,-500.0,0.00013698,2]
[424298906,1780757441000,-500.0,0.00013698,2]
[424298908,1780757441000,-500.0,0.00013698,2]
[424298912,1780757441000,-500.0,0.00013698,2]
[424298907,1780757441000,-500.0,0.00013698,2]